[Event "*** Titled Tuesday Blitz"]
[Site "Chess.com"]
[Date "2018.06.05"]
[Round "2"]
[White "Anton_Demchenko"]
[Black "VerdeNotte"]
[Result "1/2-1/2"]
[WhiteElo "2777"]
[BlackElo "2626"]
[TimeControl "180+2"]
[EndTime "13:32:38 PDT"]
[Termination "Game drawn by 50-move rule"]

1. e4 {[%clk 0:03:01.9]} 1... c5 {[%clk 0:03:00.5]} 2. Nf3 {[%clk 0:03:02.6]}
2... d6 {[%clk 0:03:01.6]} 3. d4 {[%clk 0:03:02.6]} 3... cxd4 {[%clk 0:03:02.9]}
4. Qxd4 {[%clk 0:03:04.5]} 4... Nc6 {[%clk 0:02:58.6]} 5. Qe3 {[%clk 0:03:05.4]}
5... g6 {[%clk 0:02:55.6]} 6. Be2 {[%clk 0:03:06]} 6... Bg7 {[%clk 0:02:53]} 7.
O-O {[%clk 0:03:07]} 7... Nf6 {[%clk 0:02:51.8]} 8. Rd1 {[%clk 0:03:08]} 8...
O-O {[%clk 0:02:51.9]} 9. h3 {[%clk 0:03:09.1]} 9... Bd7 {[%clk 0:02:41.5]} 10.
Nc3 {[%clk 0:02:51.7]} 10... Rc8 {[%clk 0:02:34.9]} 11. Bd2 {[%clk 0:02:43.4]}
11... a6 {[%clk 0:02:24.5]} 12. Rac1 {[%clk 0:02:23.4]} 12... Re8 {[%clk
0:02:22.2]} 13. b3 {[%clk 0:02:19.9]} 13... e6 {[%clk 0:02:16.3]} 14. Be1 {[%clk
0:02:13.4]} 14... d5 {[%clk 0:02:11.7]} 15. e5 {[%clk 0:01:55]} 15... Ne4 {[%clk
0:01:56]} 16. Nxe4 {[%clk 0:01:51.1]} 16... dxe4 {[%clk 0:01:56.3]} 17. Qxe4
{[%clk 0:01:47.9]} 17... Qc7 {[%clk 0:01:57]} 18. c4 {[%clk 0:01:40.1]} 18...
Ne7 {[%clk 0:01:41.8]} 19. Bb4 {[%clk 0:01:28.1]} 19... Bc6 {[%clk 0:01:42.5]}
20. Qf4 {[%clk 0:00:55.5]} 20... Bxf3 {[%clk 0:01:42.5]} 21. Qxf3 {[%clk
0:00:22.3]} 21... Bxe5 {[%clk 0:01:41.7]} 22. Qe4 {[%clk 0:00:22.8]} 22... Nc6
{[%clk 0:01:40.2]} 23. Bd2 {[%clk 0:00:21.6]} 23... Nd4 {[%clk 0:01:32.7]} 24.
Bf1 {[%clk 0:00:22.5]} 24... Bg7 {[%clk 0:01:25.2]} 25. Be3 {[%clk 0:00:18.7]}
25... e5 {[%clk 0:01:25.6]} 26. c5 {[%clk 0:00:20.1]} 26... Rcd8 {[%clk
0:01:22.4]} 27. Bc4 {[%clk 0:00:21.1]} 27... Kh8 {[%clk 0:01:19.3]} 28. Bxd4
{[%clk 0:00:18.4]} 28... exd4 {[%clk 0:01:19.9]} 29. Qf3 {[%clk 0:00:19.6]}
29... Re7 {[%clk 0:01:11.5]} 30. b4 {[%clk 0:00:19.9]} 30... Rde8 {[%clk
0:01:10.2]} 31. g3 {[%clk 0:00:12.8]} 31... a5 {[%clk 0:00:57.3]} 32. a3 {[%clk
0:00:13.3]} 32... Kg8 {[%clk 0:00:52.2]} 33. Kg2 {[%clk 0:00:14.1]} 33... h5
{[%clk 0:00:35.2]} 34. h4 {[%clk 0:00:14.7]} 34... Re5 {[%clk 0:00:34.7]} 35.
Bd3 {[%clk 0:00:05.2]} 35... Qe7 {[%clk 0:00:16.8]} 36. bxa5 {[%clk 0:00:03]}
36... Rxc5 {[%clk 0:00:16.4]} 37. Rxc5 {[%clk 0:00:03.4]} 37... Qxc5 {[%clk
0:00:18.3]} 38. Qxb7 {[%clk 0:00:04.6]} 38... Qxa5 {[%clk 0:00:18.4]} 39. Bc4
{[%clk 0:00:04.6]} 39... Rf8 {[%clk 0:00:16.9]} 40. Qb4 {[%clk 0:00:03.6]} 40...
Qa8+ {[%clk 0:00:08.3]} 41. Kg1 {[%clk 0:00:04.3]} 41... Rb8 {[%clk 0:00:09.3]}
42. Qe7 {[%clk 0:00:04.3]} 42... Rf8 {[%clk 0:00:10]} 43. Rb1 {[%clk 0:00:02.6]}
43... Qe8 {[%clk 0:00:09.1]} 44. Qxe8 {[%clk 0:00:03.2]} 44... Rxe8 {[%clk
0:00:10.1]} 45. a4 {[%clk 0:00:04.7]} 45... Rc8 {[%clk 0:00:09.7]} 46. Bf1
{[%clk 0:00:04.4]} 46... Ra8 {[%clk 0:00:04.5]} 47. Bb5 {[%clk 0:00:05.1]} 47...
Bf8 {[%clk 0:00:04.6]} 48. Kf1 {[%clk 0:00:06.1]} 48... f6 {[%clk 0:00:05.1]}
49. Ke2 {[%clk 0:00:07]} 49... Bc5 {[%clk 0:00:05.5]} 50. Rc1 {[%clk 0:00:07.5]}
50... Ba7 {[%clk 0:00:04.3]} 51. Rc7 {[%clk 0:00:07.5]} 51... g5 {[%clk
0:00:03.9]} 52. Kd3 {[%clk 0:00:07.5]} 52... Bb6 {[%clk 0:00:04.9]} 53. Rc6
{[%clk 0:00:08]} 53... Bd8 {[%clk 0:00:06]} 54. Kxd4 {[%clk 0:00:08.7]} 54...
gxh4 {[%clk 0:00:07.3]} 55. gxh4 {[%clk 0:00:09.6]} 55... Kg7 {[%clk 0:00:08.6]}
56. Ke4 {[%clk 0:00:08.7]} 56... Ra7 {[%clk 0:00:07.1]} 57. Kf5 {[%clk
0:00:08.7]} 57... Rc7 {[%clk 0:00:06.2]} 58. Re6 {[%clk 0:00:04]} 58... Rc5+
{[%clk 0:00:06.8]} 59. Kf4 {[%clk 0:00:05.1]} 59... Re5 {[%clk 0:00:07.4]} 60.
Rc6 {[%clk 0:00:04.9]} 60... Rd5 {[%clk 0:00:05.7]} 61. Kg3 {[%clk 0:00:04.2]}
61... Rd4 {[%clk 0:00:05.3]} 62. Rc8 {[%clk 0:00:04.7]} 62... Rg4+ {[%clk
0:00:06.1]} 63. Kh3 {[%clk 0:00:05.3]} 63... Rd4 {[%clk 0:00:06.9]} 64. f3
{[%clk 0:00:05.6]} 64... f5 {[%clk 0:00:07.8]} 65. f4 {[%clk 0:00:05.9]} 65...
Kf7 {[%clk 0:00:07.1]} 66. Rc4 {[%clk 0:00:03.4]} 66... Rd3+ {[%clk 0:00:07.2]}
67. Kg2 {[%clk 0:00:04.2]} 67... Rd2+ {[%clk 0:00:08.6]} 68. Kf3 {[%clk
0:00:05]} 68... Bxh4 {[%clk 0:00:09.2]} 69. Rc7+ {[%clk 0:00:04.2]} 69... Ke6
{[%clk 0:00:09.6]} 70. a5 {[%clk 0:00:04.9]} 70... Rf2+ {[%clk 0:00:10.4]} 71.
Ke3 {[%clk 0:00:06.2]} 71... Ra2 {[%clk 0:00:08.2]} 72. a6 {[%clk 0:00:06.9]}
72... Bf2+ {[%clk 0:00:09.5]} 73. Kf3 {[%clk 0:00:07.8]} 73... h4 {[%clk
0:00:10.5]} 74. Rh7 {[%clk 0:00:08.3]} 74... Kd6 {[%clk 0:00:09.8]} 75. Bc4
{[%clk 0:00:07.7]} 75... Rc2 {[%clk 0:00:10.5]} 76. Bd3 {[%clk 0:00:07.2]} 76...
Ra2 {[%clk 0:00:11.7]} 77. Bxf5 {[%clk 0:00:07]} 77... Bc5 {[%clk 0:00:10.1]}
78. Kg4 {[%clk 0:00:05.4]} 78... Rg2+ {[%clk 0:00:09.2]} 79. Kf3 {[%clk
0:00:05.7]} 79... Rg3+ {[%clk 0:00:10.1]} 80. Ke2 {[%clk 0:00:06.4]} 80... Re3+
{[%clk 0:00:10.1]} 81. Kd2 {[%clk 0:00:07.4]} 81... Rf3 {[%clk 0:00:11.2]} 82.
a7 {[%clk 0:00:05.4]} 82... Bxa7 {[%clk 0:00:12]} 83. Rxa7 {[%clk 0:00:05.7]}
83... Rxf4 {[%clk 0:00:13.4]} 84. Bd3 {[%clk 0:00:06.6]} 84... h3 {[%clk
0:00:13.8]} 85. Rh7 {[%clk 0:00:07]} 85... Rf3 {[%clk 0:00:14.1]} 86. Ke2 {[%clk
0:00:07.7]} 86... Rg3 {[%clk 0:00:15.4]} 87. Bf5 {[%clk 0:00:08.1]} 87... Ke5
{[%clk 0:00:14.4]} 88. Bxh3 {[%clk 0:00:09]} 88... Rb3 {[%clk 0:00:15.9]} 89.
Bf1 {[%clk 0:00:09.7]} 89... Kf4 {[%clk 0:00:16.2]} 90. Rf7+ {[%clk 0:00:10.1]}
90... Ke5 {[%clk 0:00:17.5]} 91. Kf2 {[%clk 0:00:10.1]} 91... Rb2+ {[%clk
0:00:17.4]} 92. Be2 {[%clk 0:00:11.3]} 92... Rb3 {[%clk 0:00:18.6]} 93. Bf3
{[%clk 0:00:11.1]} 93... Ra3 {[%clk 0:00:17.3]} 94. Kg3 {[%clk 0:00:12.1]} 94...
Rc3 {[%clk 0:00:17.9]} 95. Rf8 {[%clk 0:00:12.9]} 95... Ra3 {[%clk 0:00:18.5]}
96. Rh8 {[%clk 0:00:12]} 96... Rc3 {[%clk 0:00:17.9]} 97. Rh5+ {[%clk
0:00:13.5]} 97... Kd4 {[%clk 0:00:17.6]} 98. Kf4 {[%clk 0:00:15.4]} 98... Rc4
{[%clk 0:00:17.6]} 99. Be4 {[%clk 0:00:15.9]} 99... Rc5 {[%clk 0:00:13.3]} 100.
Rh8 {[%clk 0:00:15.9]} 100... Ra5 {[%clk 0:00:11.2]} 101. Rd8+ {[%clk
0:00:16.8]} 101... Kc3 {[%clk 0:00:11.6]} 102. Ke3 {[%clk 0:00:17.2]} 102... Rc5
{[%clk 0:00:11.5]} 103. Rd2 {[%clk 0:00:16.8]} 103... Re5 {[%clk 0:00:12.1]}
104. Rc2+ {[%clk 0:00:16.5]} 104... Kb3 {[%clk 0:00:13.4]} 105. Rc8 {[%clk
0:00:18]} 105... Re7 {[%clk 0:00:11.7]} 106. Kd4 {[%clk 0:00:18.9]} 106... Rd7+
{[%clk 0:00:12]} 107. Bd5+ {[%clk 0:00:20.3]} 107... Kb2 {[%clk 0:00:13.1]} 108.
Kc4 {[%clk 0:00:16.1]} 108... Kc2 {[%clk 0:00:11]} 109. Ra8 {[%clk 0:00:10.7]}
109... Kd2 {[%clk 0:00:10.4]} 110. Kd4 {[%clk 0:00:11.6]} 110... Ke2 {[%clk
0:00:07.9]} 111. Ra2+ {[%clk 0:00:11.9]} 111... Kd1 {[%clk 0:00:08.7]} 112. Ke4
{[%clk 0:00:11.8]} 112... Kc1 {[%clk 0:00:08.9]} 113. Rh2 {[%clk 0:00:10.3]}
113... Rd8 {[%clk 0:00:09]} 114. Kd4 {[%clk 0:00:10.5]} 114... Kd1 {[%clk
0:00:09.9]} 115. Kc4 {[%clk 0:00:06.7]} 115... Ke1 {[%clk 0:00:10.6]} 116. Be4
{[%clk 0:00:07.9]} 116... Rc8+ {[%clk 0:00:11]} 117. Kd4 {[%clk 0:00:08.8]}
117... Kd1 {[%clk 0:00:04.2]} 118. Ke3 {[%clk 0:00:09.4]} 118... Kc1 {[%clk
0:00:05.3]} 119. Bd3 {[%clk 0:00:07.2]} 119... Re8+ {[%clk 0:00:06.2]} 120. Kd4
{[%clk 0:00:08.6]} 120... Rc8 {[%clk 0:00:07.4]} 121. Rg2 {[%clk 0:00:08.6]}
121... Kd1 {[%clk 0:00:07.4]} 122. Ke3 {[%clk 0:00:08.3]} 122... Kc1 {[%clk
0:00:08.3]} 123. Rh2 {[%clk 0:00:05.9]} 123... Re8+ {[%clk 0:00:07.2]} 124. Kd4
{[%clk 0:00:06.4]} 124... Rc8 {[%clk 0:00:08.4]} 125. Rf2 {[%clk 0:00:06.8]}
125... Kd1 {[%clk 0:00:06.2]} 126. Ke3 {[%clk 0:00:05.1]} 126... Kc1 {[%clk
0:00:06.9]} 127. Rf1+ {[%clk 0:00:06.3]} 127... Kb2 {[%clk 0:00:07.7]} 128. Rb1+
{[%clk 0:00:07.9]} 128... Ka3 {[%clk 0:00:08.6]} 129. Kd2 {[%clk 0:00:07.7]}
129... Ka4 {[%clk 0:00:07.3]} 130. Rb7 {[%clk 0:00:06.8]} 130... Rc5 {[%clk
0:00:04.5]} 131. Ke3 {[%clk 0:00:08.1]} 131... Rc8 {[%clk 0:00:04.2]} 132. Kd4
{[%clk 0:00:09]} 132... Ka5 {[%clk 0:00:04.2]} 133. Bc4 {[%clk 0:00:09.6]}
133... Rc6 {[%clk 0:00:03.9]} 134. Kd5 {[%clk 0:00:09.1]} 134... Rb6 {[%clk
0:00:04.4]} 135. Ra7+ {[%clk 0:00:04.8]} 135... Kb4 {[%clk 0:00:05.6]} 136. Kd4
{[%clk 0:00:06.3]} 136... Rd6+ {[%clk 0:00:06.4]} 137. Bd5 {[%clk 0:00:07.8]}
137... Rb6 {[%clk 0:00:07.4]} 138. Ra1 {[%clk 0:00:09.4]} 138... Rb5 {[%clk
0:00:05.7]} 139. Bc4 {[%clk 0:00:10.4]} 139... Rb6 {[%clk 0:00:06.3]} 140. Ra2
{[%clk 0:00:10.3]} 140... Rd6+ {[%clk 0:00:06.9]} 141. Bd5 {[%clk 0:00:11.8]}
141... Rb6 {[%clk 0:00:08.1]} 1/2-1/2

[Event "*** Titled Tuesday Blitz"]
[Site "Chess.com"]
[Date "2018.06.05"]
[Round "3"]
[White "Martins-BR"]
[Black "ChrisTool2"]
[Result "1-0"]
[WhiteElo "2318"]
[BlackElo "2226"]
[TimeControl "180+2"]
[EndTime "13:36:08 PDT"]
[Termination "Martins-BR won by checkmate"]

1. e4 {[%clk 0:03:01.9]} 1... c5 {[%clk 0:02:59.8]} 2. Nf3 {[%clk 0:03:01.6]}
2... e6 {[%clk 0:03:01.3]} 3. d4 {[%clk 0:03:01.4]} 3... cxd4 {[%clk 0:03:03.2]}
4. Nxd4 {[%clk 0:03:02.4]} 4... a6 {[%clk 0:03:05.1]} 5. Bd3 {[%clk 0:03:02.4]}
5... Qc7 {[%clk 0:03:06.2]} 6. O-O {[%clk 0:03:02.3]} 6... Nf6 {[%clk
0:03:07.7]} 7. Qe2 {[%clk 0:03:02.6]} 7... d6 {[%clk 0:03:09]} 8. f4 {[%clk
0:03:02.9]} 8... Nbd7 {[%clk 0:03:10.1]} 9. Be3 {[%clk 0:03:02.6]} 9... Be7
{[%clk 0:03:02.4]} 10. Nd2 {[%clk 0:03:02.4]} 10... b6 {[%clk 0:02:58.9]} 11. g4
{[%clk 0:03:01.8]} 11... Nc5 {[%clk 0:02:58.8]} 12. g5 {[%clk 0:03:01.3]} 12...
Nfd7 {[%clk 0:02:58.1]} 13. b4 {[%clk 0:03:01.1]} 13... Nxd3 {[%clk 0:02:44.8]}
14. cxd3 {[%clk 0:03:01.4]} 14... Bb7 {[%clk 0:02:39.5]} 15. Rac1 {[%clk
0:03:00.9]} 15... Qd8 {[%clk 0:02:37.9]} 16. f5 {[%clk 0:03:01.8]} 16... e5
{[%clk 0:02:31.3]} 17. Ne6 {[%clk 0:03:01.8]} 17... fxe6 {[%clk 0:02:23.8]} 18.
Qh5+ {[%clk 0:03:01.5]} 18... g6 {[%clk 0:02:01.6]} 19. fxg6 {[%clk 0:03:01.7]}
19... hxg6 {[%clk 0:01:16.7]} 20. Qxg6# {[%clk 0:02:58.1]} 1-0

[Event "*** Titled Tuesday Blitz"]
[Site "Chess.com"]
[Date "2018.06.05"]
[Round "3"]
[White "VitaliyBernadskiy"]
[Black "MyleneFarmer"]
[Result "1-0"]
[WhiteElo "2628"]
[BlackElo "2382"]
[TimeControl "180+2"]
[EndTime "13:37:45 PDT"]
[Termination "VitaliyBernadskiy won on time"]

1. e4 {[%clk 0:03:01.9]} 1... c5 {[%clk 0:02:58.3]} 2. Nf3 {[%clk 0:03:00.5]}
2... d6 {[%clk 0:02:59.4]} 3. Nc3 {[%clk 0:02:58.8]} 3... Nf6 {[%clk 0:02:58.9]}
4. e5 {[%clk 0:02:53.1]} 4... dxe5 {[%clk 0:02:59.3]} 5. Nxe5 {[%clk 0:02:55]}
5... Nbd7 {[%clk 0:03:00.6]} 6. Bb5 {[%clk 0:02:54]} 6... e6 {[%clk 0:02:57.1]}
7. d4 {[%clk 0:02:53.6]} 7... cxd4 {[%clk 0:02:54.8]} 8. Qxd4 {[%clk 0:02:52.2]}
8... a6 {[%clk 0:02:55.9]} 9. Bxd7+ {[%clk 0:02:51.7]} 9... Nxd7 {[%clk
0:02:55.1]} 10. Nc4 {[%clk 0:02:41.4]} 10... Bc5 {[%clk 0:02:45.7]} 11. Qxg7
{[%clk 0:02:37.8]} 11... Qf6 {[%clk 0:02:42.8]} 12. Qxf6 {[%clk 0:02:38.5]}
12... Nxf6 {[%clk 0:02:44.2]} 13. Be3 {[%clk 0:02:34.8]} 13... Bxe3 {[%clk
0:02:43.6]} 14. fxe3 {[%clk 0:02:35.6]} 14... Ke7 {[%clk 0:02:45]} 15. Nb6
{[%clk 0:02:34]} 15... Rb8 {[%clk 0:02:45.8]} 16. O-O {[%clk 0:02:31.5]} 16...
Bd7 {[%clk 0:02:46.2]} 17. Rxf6 {[%clk 0:02:25.2]} 1-0

[Event "*** Titled Tuesday Blitz"]
[Site "Chess.com"]
[Date "2018.06.05"]
[Round "3"]
[White "grzechu96"]
[Black "AlexanderL"]
[Result "0-1"]
[WhiteElo "2491"]
[BlackElo "2726"]
[TimeControl "180+2"]
[EndTime "13:38:01 PDT"]
[Termination "AlexanderL won by resignation"]

1. e4 {[%clk 0:03:01.9]} 1... e6 {[%clk 0:03:01.9]} 2. d4 {[%clk 0:03:02.3]}
2... d5 {[%clk 0:03:01.1]} 3. Nc3 {[%clk 0:03:03.3]} 3... Bb4 {[%clk 0:03:01.7]}
4. e5 {[%clk 0:03:03.9]} 4... c5 {[%clk 0:03:02.6]} 5. a3 {[%clk 0:03:04.5]}
5... Bxc3+ {[%clk 0:03:03.9]} 6. bxc3 {[%clk 0:03:06.4]} 6... Qa5 {[%clk
0:03:05.4]} 7. Bd2 {[%clk 0:03:01.9]} 7... Qa4 {[%clk 0:03:04.2]} 8. Qg4 {[%clk
0:03:01.5]} 8... Kf8 {[%clk 0:03:02.4]} 9. Qd1 {[%clk 0:02:56.5]} 9... b6 {[%clk
0:02:54.1]} 10. dxc5 {[%clk 0:02:54.7]} 10... bxc5 {[%clk 0:02:53.9]} 11. Nf3
{[%clk 0:02:53.3]} 11... Ne7 {[%clk 0:02:52.4]} 12. Rb1 {[%clk 0:02:54]} 12...
Ba6 {[%clk 0:02:51.9]} 13. Bxa6 {[%clk 0:02:52.4]} 13... Qxa6 {[%clk 0:02:52.8]}
14. Qe2 {[%clk 0:02:52.3]} 14... c4 {[%clk 0:02:50.3]} 15. O-O {[%clk
0:02:39.6]} 15... Nbc6 {[%clk 0:02:49.6]} 16. Nd4 {[%clk 0:02:40.1]} 16... h6
{[%clk 0:02:24]} 17. f4 {[%clk 0:02:11.4]} 17... Nxd4 {[%clk 0:02:11.5]} 18.
cxd4 {[%clk 0:02:13.3]} 18... Kg8 {[%clk 0:02:08.9]} 19. g4 {[%clk 0:02:13.7]}
19... h5 {[%clk 0:02:08.9]} 20. f5 {[%clk 0:02:14.8]} 20... hxg4 {[%clk
0:02:06.9]} 21. f6 {[%clk 0:02:15.7]} 21... Nf5 {[%clk 0:02:07.7]} 22. fxg7
{[%clk 0:02:12.1]} 22... Rh7 {[%clk 0:02:06.2]} 23. Rf4 {[%clk 0:01:52.1]} 23...
g3 {[%clk 0:01:59.6]} 24. hxg3 {[%clk 0:01:52.7]} 24... Qxa3 {[%clk 0:02:00.2]}
25. Qg2 {[%clk 0:01:44.7]} 25... Qxg3 {[%clk 0:01:45.3]} 26. Qxg3 {[%clk
0:01:43.7]} 26... Nxg3 {[%clk 0:01:46.3]} 27. Rb7 {[%clk 0:01:16.3]} 27... Ne2+
{[%clk 0:01:46.2]} 0-1

[Event "*** Titled Tuesday Blitz"]
[Site "Chess.com"]
[Date "2018.06.05"]
[Round "3"]
[White "Blitzking4444"]
[Black "Jadeit90"]
[Result "1-0"]
[WhiteElo "2078"]
[BlackElo "2153"]
[TimeControl "180+2"]
[EndTime "13:38:03 PDT"]
[Termination "Blitzking4444 won by checkmate"]

1. e4 {[%clk 0:03:01.9]} 1... g6 {[%clk 0:02:57.5]} 2. d4 {[%clk 0:03:02.5]}
2... Bg7 {[%clk 0:02:58.6]} 3. Nc3 {[%clk 0:03:03.6]} 3... c5 {[%clk 0:02:59.6]}
4. dxc5 {[%clk 0:03:03.5]} 4... Qa5 {[%clk 0:03:00.3]} 5. Ne2 {[%clk 0:02:43.4]}
5... Qxc5 {[%clk 0:03:00.2]} 6. Be3 {[%clk 0:02:27.8]} 6... Qa5 {[%clk 0:03:01]}
7. Bd4 {[%clk 0:02:20.4]} 7... Nf6 {[%clk 0:03:01.8]} 8. e5 {[%clk 0:02:03.2]}
8... Ng4 {[%clk 0:02:59.1]} 9. e6 {[%clk 0:01:58.5]} 9... f6 {[%clk 0:02:56.3]}
10. Nc1 {[%clk 0:00:57.2]} 10... Ne5 {[%clk 0:02:53.9]} 11. Nb3 {[%clk
0:00:56.5]} 11... Qd8 {[%clk 0:02:49.7]} 12. Bxe5 {[%clk 0:00:35.6]} 12... fxe5
{[%clk 0:02:51.6]} 13. Bc4 {[%clk 0:00:32.7]} 13... d6 {[%clk 0:02:51.7]} 14.
Qf3 {[%clk 0:00:22.5]} 14... Rf8 {[%clk 0:02:30]} 15. Bb5+ {[%clk 0:00:23.2]}
15... Nd7 {[%clk 0:02:21.3]} 16. Qh3 {[%clk 0:00:21.6]} 16... a6 {[%clk
0:02:05.8]} 17. exd7+ {[%clk 0:00:17.6]} 17... Kf7 {[%clk 0:02:06.2]} 18. Bc4+
{[%clk 0:00:14.6]} 18... Kf6 {[%clk 0:02:06.6]} 19. Ne4# {[%clk 0:00:12.9]} 1-0

[Event "*** Titled Tuesday Blitz"]
[Site "Chess.com"]
[Date "2018.06.05"]
[Round "3"]
[White "blitzcopter"]
[Black "akashcheck"]
[Result "0-1"]
[WhiteElo "2075"]
[BlackElo "2162"]
[TimeControl "180+2"]
[EndTime "13:38:03 PDT"]
[Termination "akashcheck won by resignation"]

1. e4 {[%clk 0:03:01.9]} 1... e5 {[%clk 0:03:00.6]} 2. Bc4 {[%clk 0:03:01.2]}
2... Nf6 {[%clk 0:03:00.3]} 3. d3 {[%clk 0:03:01.3]} 3... Nc6 {[%clk 0:03:01.2]}
4. Nc3 {[%clk 0:03:02.6]} 4... Bb4 {[%clk 0:03:01]} 5. Ne2 {[%clk 0:03:01.2]}
5... d5 {[%clk 0:03:01.8]} 6. exd5 {[%clk 0:03:00.6]} 6... Nxd5 {[%clk
0:03:03.7]} 7. O-O {[%clk 0:03:00.6]} 7... Bxc3 {[%clk 0:03:01.9]} 8. Nxc3
{[%clk 0:02:56]} 8... Nxc3 {[%clk 0:03:01.7]} 9. bxc3 {[%clk 0:02:57.9]} 9...
O-O {[%clk 0:03:03.2]} 10. f4 {[%clk 0:02:57.9]} 10... Be6 {[%clk 0:02:43.4]}
11. Bb3 {[%clk 0:02:42.6]} 11... Bxb3 {[%clk 0:02:37.5]} 12. axb3 {[%clk
0:02:42]} 12... Qd5 {[%clk 0:02:34.8]} 13. Kh1 {[%clk 0:02:13.1]} 13... e4
{[%clk 0:02:11.3]} 14. f5 {[%clk 0:01:10.2]} 14... exd3 {[%clk 0:02:07]} 15.
cxd3 {[%clk 0:01:12.1]} 15... f6 {[%clk 0:02:03]} 16. d4 {[%clk 0:01:04.5]}
16... Rfe8 {[%clk 0:02:01.4]} 17. Bf4 {[%clk 0:01:01.9]} 17... Re7 {[%clk
0:01:59.8]} 18. Qc2 {[%clk 0:00:58.8]} 18... Rae8 {[%clk 0:02:00.5]} 19. Rad1
{[%clk 0:00:41.4]} 19... Re2 {[%clk 0:01:59.8]} 0-1

[Event "*** Titled Tuesday Blitz"]
[Site "Chess.com"]
[Date "2018.06.05"]
[Round "3"]
[White "jacky72"]
[Black "orrbaverlekszarnyon"]
[Result "1-0"]
[WhiteElo "2636"]
[BlackElo "2349"]
[TimeControl "180+2"]
[EndTime "13:38:14 PDT"]
[Termination "jacky72 won by resignation"]

1. e4 {[%clk 0:03:01.9]} 1... c5 {[%clk 0:03:00.6]} 2. Nc3 {[%clk 0:03:01.6]}
2... g6 {[%clk 0:03:00.2]} 3. g3 {[%clk 0:03:03]} 3... Bg7 {[%clk 0:03:01.1]} 4.
Bg2 {[%clk 0:03:04.9]} 4... Nc6 {[%clk 0:03:02]} 5. d3 {[%clk 0:03:06.4]} 5...
d6 {[%clk 0:03:03]} 6. f4 {[%clk 0:03:07.9]} 6... Nf6 {[%clk 0:03:04.1]} 7. Nh3
{[%clk 0:03:09.3]} 7... O-O {[%clk 0:03:04.7]} 8. O-O {[%clk 0:03:10.8]} 8...
Ne8 {[%clk 0:03:05.5]} 9. Be3 {[%clk 0:03:12]} 9... Nc7 {[%clk 0:03:06.3]} 10.
Qd2 {[%clk 0:03:12.6]} 10... Ne6 {[%clk 0:03:06.4]} 11. Rae1 {[%clk 0:03:13.3]}
11... Ned4 {[%clk 0:03:07.2]} 12. Nd1 {[%clk 0:03:14.7]} 12... b5 {[%clk
0:03:00.6]} 13. c3 {[%clk 0:03:14.3]} 13... Ne6 {[%clk 0:02:45.6]} 14. f5 {[%clk
0:03:15.5]} 14... Nc7 {[%clk 0:02:46.6]} 15. Ng5 {[%clk 0:03:12.2]} 15... Rb8
{[%clk 0:02:44.6]} 16. g4 {[%clk 0:03:08.8]} 16... b4 {[%clk 0:02:42.7]} 17. Qf2
{[%clk 0:03:06.2]} 17... Ne5 {[%clk 0:02:36.2]} 18. Qh4 {[%clk 0:03:02.5]} 18...
h6 {[%clk 0:02:31.6]} 19. Nh3 {[%clk 0:03:03.9]} 19... Nxd3 {[%clk 0:02:19.4]}
20. Bxh6 {[%clk 0:03:02.1]} 20... Nxe1 {[%clk 0:02:17.4]} 21. Rxe1 {[%clk
0:02:58.5]} 21... e6 {[%clk 0:02:18.6]} 22. Ng5 {[%clk 0:02:53.1]} 22... Qf6
{[%clk 0:02:13.1]} 23. Rf1 {[%clk 0:02:41.6]} 23... Bxh6 {[%clk 0:02:11.7]} 24.
Qxh6 {[%clk 0:02:41.7]} 24... Qg7 {[%clk 0:02:12.9]} 25. Qh4 {[%clk 0:02:40.8]}
25... exf5 {[%clk 0:02:04.9]} 26. exf5 {[%clk 0:02:39.9]} 26... gxf5 {[%clk
0:02:05.9]} 27. gxf5 {[%clk 0:02:41.3]} 27... f6 {[%clk 0:02:06.5]} 28. Ne4
{[%clk 0:02:38.9]} 28... Bb7 {[%clk 0:01:57.1]} 29. Rf4 {[%clk 0:02:34.5]} 29...
Kf7 {[%clk 0:01:33.5]} 30. Nxd6+ {[%clk 0:02:34.8]} 30... Ke7 {[%clk 0:01:30.6]}
31. Nxb7 {[%clk 0:02:34.3]} 31... Rxb7 {[%clk 0:01:31.8]} 32. Rg4 {[%clk
0:02:34]} 32... Qf7 {[%clk 0:01:09.5]} 33. Bxb7 {[%clk 0:02:34.5]} 33... Rg8
{[%clk 0:01:10]} 34. cxb4 {[%clk 0:02:26.7]} 34... Qxa2 {[%clk 0:01:02.1]} 35.
Qh7+ {[%clk 0:02:26.3]} 35... Kf8 {[%clk 0:01:01.3]} 36. Rxg8+ {[%clk
0:02:25.5]} 36... Qxg8+ {[%clk 0:01:03.2]} 37. Qxg8+ {[%clk 0:02:26.9]} 37...
Kxg8 {[%clk 0:01:05.1]} 38. bxc5 {[%clk 0:02:28.6]} 1-0

[Event "*** Titled Tuesday Blitz"]
[Site "Chess.com"]
[Date "2018.06.05"]
[Round "3"]
[White "JosefineHeinemann"]
[Black "ChainsOfFantasia"]
[Result "0-1"]
[WhiteElo "2301"]
[BlackElo "2422"]
[TimeControl "180+2"]
[EndTime "13:38:17 PDT"]
[Termination "ChainsOfFantasia won by resignation"]

1. e4 {[%clk 0:03:01.9]} 1... c6 {[%clk 0:01:09.7]} 2. d4 {[%clk 0:03:02.1]}
2... d5 {[%clk 0:01:11.6]} 3. e5 {[%clk 0:03:03.7]} 3... Bf5 {[%clk 0:01:12.2]}
4. Nf3 {[%clk 0:03:04.9]} 4... e6 {[%clk 0:01:11.3]} 5. Be2 {[%clk 0:03:06.4]}
5... Nd7 {[%clk 0:01:11.1]} 6. O-O {[%clk 0:03:07.3]} 6... c5 {[%clk 0:01:09.7]}
7. c3 {[%clk 0:03:04.5]} 7... Ne7 {[%clk 0:01:09.9]} 8. Be3 {[%clk 0:03:03.4]}
8... Nc6 {[%clk 0:01:10.5]} 9. Qd2 {[%clk 0:02:57.6]} 9... h6 {[%clk 0:01:10.6]}
10. Rc1 {[%clk 0:02:53.9]} 10... c4 {[%clk 0:01:10.3]} 11. b3 {[%clk 0:02:54.5]}
11... b5 {[%clk 0:01:11.4]} 12. a4 {[%clk 0:02:55.1]} 12... a6 {[%clk
0:01:12.8]} 13. axb5 {[%clk 0:02:56.3]} 13... axb5 {[%clk 0:01:14.7]} 14. Rxa8
{[%clk 0:02:57.1]} 14... Qxa8 {[%clk 0:01:16.6]} 15. Qb2 {[%clk 0:02:55.4]}
15... Be7 {[%clk 0:01:16.2]} 16. Nbd2 {[%clk 0:02:56]} 16... O-O {[%clk
0:01:15.9]} 17. Ra1 {[%clk 0:02:57]} 17... Qb7 {[%clk 0:01:17.2]} 18. b4 {[%clk
0:02:55.9]} 18... Ra8 {[%clk 0:01:17.1]} 19. Ra3 {[%clk 0:02:57.4]} 19... Ra7
{[%clk 0:01:16.2]} 20. Qa2 {[%clk 0:02:58.1]} 20... Qa8 {[%clk 0:01:16.3]} 21.
Rxa7 {[%clk 0:02:59.1]} 21... Qxa7 {[%clk 0:01:18.2]} 22. Qxa7 {[%clk
0:03:00.3]} 22... Nxa7 {[%clk 0:01:20.1]} 23. h3 {[%clk 0:02:59.6]} 23... Nc6
{[%clk 0:01:21.1]} 24. g4 {[%clk 0:03:00.7]} 24... Bg6 {[%clk 0:01:19.8]} 25.
Nf1 {[%clk 0:03:01.4]} 25... Nxb4 {[%clk 0:01:19.3]} 26. cxb4 {[%clk 0:03:02.4]}
26... Bxb4 {[%clk 0:01:21.2]} 27. Ng3 {[%clk 0:02:59.7]} 27... Ba3 {[%clk
0:01:18.5]} 28. Bd1 {[%clk 0:02:51.9]} 28... b4 {[%clk 0:01:19.3]} 29. Nh4
{[%clk 0:02:44.4]} 29... Bh7 {[%clk 0:01:17.5]} 30. f4 {[%clk 0:02:45.3]} 30...
Bd3 {[%clk 0:01:15.2]} 31. Nf1 {[%clk 0:02:25.6]} 31... b3 {[%clk 0:01:13.3]}
32. Nd2 {[%clk 0:02:25.1]} 32... b2 {[%clk 0:01:08.2]} 33. f5 {[%clk 0:02:24.2]}
33... Bb4 {[%clk 0:01:08.6]} 34. fxe6 {[%clk 0:02:23.2]} 34... fxe6 {[%clk
0:01:10.5]} 35. Nhf3 {[%clk 0:02:18.8]} 35... Bxd2 {[%clk 0:01:06.7]} 36. Nxd2
{[%clk 0:02:20.7]} 36... c3 {[%clk 0:01:08]} 0-1